Cogmind - Beta 13 @@@ ROGUE MODE // 2024.06.14 @ 19:47:57 Player: Blade Result: Self-destructed Performance ------------- Evolutions (2) 1000 Regions Visited (3) 600 Robots Destroyed (6) 30 Value Destroyed (185) 185 Prototype IDs (0) 0 Alien Tech Used (0) 0 Bonus (0) 0 TOTAL SCORE: 1815 Bonus ------- None Cogmind --------- Core Integrity 443/550 Matter 300/300 Energy 247/250 System Corruption 0% Temperature Cool (5) Movement Flying (112) Ox1 Location -8/Materials Parts ------- > --- POWER (1) -------- Ion Engine > --- PROPULSION (4) --- VTOL Module VTOL Module > --- UTILITY (4) ------ Heat Sink Small Storage Unit > --- WEAPON (2) ------- Beam Cannon > --- INVENTORY (8) ---- Ion Engine Light Treads Light Treads Aluminum Leg Medium Matter Pod (8) Improved Sensor Array Beam Cannon Peak State ------------ > --- POWER ------------ Ion Engine > --- PROPULSION ------- VTOL Module VTOL Module VTOL Module VTOL Module > --- UTILITY ---------- Heat Sink Small Storage Unit Improved Sensor Array > --- WEAPON ----------- Beam Cannon > --- INVENTORY -------- Ion Engine Light Treads Light Treads Aluminum Leg Medium Matter Pod Beam Cannon [Rating: 15] Favorites ----------- Power Ion Engine Engine Ion Engine Propulsion VTOL Module Leg Aluminum Leg Wheel Wheel Flight Unit VTOL Module Utility Heat Sink Device Heat Sink Storage Small Storage Unit Weapon Beam Cannon Energy Gun EM Pulse Gun Energy Cannon Beam Cannon Ballistic Gun Light Assault Rifle Build | -11 -10 -9 -8 ------- Run | Yrd Mat Mat Mat Slots Evolved 4 | . . 2 2 Power . | . . . . Propulsion 2 | . . 2 . Utility 2 | . . . 2 Weapon . | . . . . Parts Attached 16 | . 9 5 2 Power 1 | . 1 . . Engine 1 | . 1 . . Core . | . . . . Reactor . | . . . . Propulsion 6 | . 2 4 . Treads . | . . . . Leg . | . . . . Wheel 2 | . 2 . . Hover . | . . . . Flight 4 | . . 4 . Utility 4 | . 2 1 1 Device 2 | . 1 . 1 Storage 2 | . 1 1 . Processor . | . . . . Hackware . | . . . . Protection . | . . . . Artifact . | . . . . Weapon 5 | . 4 . 1 Energy Gun . | . . . . Energy Cannon 3 | . 3 . . Ballistic Gun 2 | . 1 . 1 Ballistic Cannon . | . . . . Launcher . | . . . . Special Weapon . | . . . . Impact Weapon . | . . . . Slashing Weapon . | . . . . Piercing Weapon . | . . . . Special Melee Weapon . | . . . . Unidentified Prototypes . | . . . . Parts Lost 2 | . . . 2 Power . | . . . . Propulsion 2 | . . . 2 Utility . | . . . . Weapon . | . . . . Highest Loss Streak 2 | . . . 2 To Critical Strikes . | . . . . Average Slot Usage (%) 86 | . 91 88 72 Engine 12 | . 14 11 9 Leg 3 | . 6 . . Wheel 11 | . 21 . . Flight 18 | . . 44 36 Device 7 | . 6 11 9 Storage 11 | . 14 9 9 Energy Gun 2 | . 3 . . Energy Cannon 16 | . 20 12 9 Ballistic Gun 2 | . 3 . . Naked Turns . | . . . . Heaviest Build 32 | 13 32 14 14 Greatest Support 26 | 20 26 16 16 Greatest Overweight (x) 1 | . 1 . 1 Average Overweight (x) . | . . . . Largest Inventory Capacity 15 | . 15 15 8 Average Capacity 10 | . 13 8 8 Most Carried 10 | . 10 10 7 Average Carried 5 | . 5 6 6 Final Capacity 15 | 8 15 8 8 Final Carried 10 | 6 10 6 7 Class Distribution -------------------- 52% | Mutant 47% | Sprinter Dominant Class ---------------- Mutant | -10/Materials Sprinter | -9/Materials Sprinter | -8/Materials Resources | -11 -10 -9 -8 ----------- Run | Yrd Mat Mat Mat Matter Collected 366 | 200 88 . 78 Remotely . | . . . . Salvage Created 273 | . 273 . . Parts 9 | . 9 . . Haulers Intercepted 1 | . 1 . . Recyclers Shooed . | . . . . Parts Field Recycled . | . . . . Retrieved Matter . | . . . . Parts Self-Destructed . | . . . . Prevented . | . . . . Kills | -11 -10 -9 -8 ------- Run | Yrd Mat Mat Mat Combat Hostiles Destroyed 5 | . 5 . . Guns 1 | . 1 . . Cannons 4 | . 4 . . Classes Destroyed 2 | . 2 . . Hauler 1 | . 1 . . Grunt 5 | . 5 . . Best Kill Streak 2 | . 2 . . Combat Bots Only 2 | . 2 . . Max Kills in Single Turn 1 | . 1 . . Gunslinging . | . . . . Exploded . | . . . . Melee . | . . . . Uniques/NPCs Destroyed . | . . . . Combat | -11 -10 -9 -8 -------- Run | Yrd Mat Mat Mat Hostile Shots Fired 63 | . 29 20 14 Missed 21 | . 6 12 3 Damage Taken 601 | . 283 99 219 Core 229 | . 86 36 107 Absorbed by Shields . | . . . . Core Remaining (%) 85 | 100 65 91 . Volleys Fired 23 | . 21 . 2 Largest 2 | . 2 . 1 Hottest 120 | . 120 . 60 Shots Fired 44 | . 42 . 2 Gun 16 | . 16 . . Cannon 28 | . 26 . 2 Launcher . | . . . . Special . | . . . . Kinetic 8 | . 8 . . Thermal 28 | . 26 . 2 Explosive . | . . . . Electromagnetic 8 | . 8 . . Robot Hit Streak 10 | . 10 . . Robot Miss Streak 3 | . 3 . 2 Penetration Max . | . . . . Secondary Targets . | . . . . Shots Hit Robots 30 | . 30 . . Core Hits 9 | . 9 . . Critical Kills . | . . . . Critical Parts Destroyed . | . . . . Critical Strikes 1 | . 1 . . Corrupt 1 | . 1 . . Melee Attacks . | . . . . Impact . | . . . . Slashing . | . . . . Piercing . | . . . . Sneak Attacks . | . . . . Combat Hostiles . | . . . . Follow-up Attacks . | . . . . Damage Inflicted 499 | . 481 . 18 Guns 147 | . 147 . . Cannons 337 | . 319 . 18 Explosions . | . . . . Melee . | . . . . Ramming 15 | . 15 . . Kinetic 47 | . 47 . . Thermal 337 | . 319 . 18 Explosive . | . . . . Electromagnetic 100 | . 100 . . Impact . | . . . . Slashing . | . . . . Piercing . | . . . . Highest Corruption . | . . . . Average Corruption . | . . . . Corruption Purged . | . . . . Corruption Blocked . | . . . . Overload Shots . | . . . . Overflow Damage . | . . . . Projectiles . | . . . . Explosions . | . . . . Melee . | . . . . Knockbacks . | . . . . Impact . | . . . . Kinetic . | . . . . Secondary . | . . . . Self-Inflicted Damage 3 | . 3 . . Shots . | . . . . Rammed 1 | . 1 . . Targets Rammed 2 | . 2 . . Kicked 1 | . 1 . . Crushed . | . . . . Highest Temperature 383 | . 383 . 5 Average Temperature 151 | . 154 . 3 Received Heat Transfer 216 | . 156 15 45 Effects 3 | . 3 . . Shutdowns 1 | . 1 . . Damage (minor) 2 | . 2 . . Siege Activations . | . . . . Robots Corrupted . | . . . . Combat Hostiles . | . . . . Parts Fried 1 | . 1 . . Impact Corruptions . | . . . . Robots Melted . | . . . . Combat Hostiles . | . . . . Parts Melted 4 | . 4 . . Heat Transferred 703 | . 666 . 37 Parts Sabotaged . | . . . . Parts Stolen . | . . . . Parts Stripped . | . . . . Power Chain Reactions . | . . . . Alert | -11 -10 -9 -8 ------- Run | Yrd Mat Mat Mat Peak Influence 173 | . 173 135 116 Initial 72 | . . 72 56 Average 86 | . 111 30 79 Maximum Alert Level . | . . . . Low Security (%) 100 | . 100 100 100 Level 1 . | . . . . Level 2 . | . . . . Level 3 . | . . . . Level 4 . | . . . . Level 5 . | . . . . High Security . | . . . . Max Security . | . . . . Squads Dispatched 3 | . 1 . 2 Investigation 1 | . 1 . . Extermination . | . . . . Reinforcement 2 | . . . 2 Assault . | . . . . Garrison . | . . . . Intercept . | . . . . Searches Triggered . | . . . . Construction Impeded . | . . . . Haulers Reinforced . | . . . . Active Scanning Responses . | . . . . Cargo Convoy Interrupts . | . . . . Stealth | -11 -10 -9 -8 --------- Run | Yrd Mat Mat Mat Distress Signals 5 | . 1 3 1 Communications Jammed . | . . . . Distress Signals . | . . . . Times Spotted 30 | . 7 15 8 Peak Tracking Total 17 | . 4 17 10 Tactical Retreats 2 | . 1 1 . Traps | -11 -10 -9 -8 ------- Run | Yrd Mat Mat Mat Traps Triggered 1 | . 1 . . Indirectly . | . . . . Trap Hack Attempts . | . . . . Triggered . | . . . . Disarmed 4 | . . 4 . Reprogrammed . | . . . . Reused . | . . . . Traps Extracted . | . . . . Installed . | . . . . Triggered . | . . . . Machines | -11 -10 -9 -8 ---------- Run | Yrd Mat Mat Mat Machines Disabled . | . . . . Max in Single Turn . | . . . . Machines Repaired . | . . . . Machines Dismantled . | . . . . Machines Sabotaged . | . . . . Overloaded Fab Kills . | . . . . Hacking | -11 -10 -9 -8 --------- Run | Yrd Mat Mat Mat Machines Accessed 3 | . . 3 . Terminals 3 | . . 3 . Fabricators . | . . . . Repair Stations . | . . . . Recycling Units . | . . . . Scanalyzers . | . . . . Garrison Access . | . . . . Total Hacks 7 | . . 7 . Successful 4 | . . 4 . Failed 3 | . . 3 . Catastrophic . | . . . . Database Lockouts . | . . . . Manual 1 | . . 1 . Terminals 7 | . . 7 . Fabricators . | . . . . Repair Stations . | . . . . Recycling Units . | . . . . Scanalyzers . | . . . . Garrison Access . | . . . . Terminal Hacks 3 | . . 3 . Unreport Threat 1 | . . 1 . Disarm Traps 1 | . . 1 . Hauler Manifests 1 | . . 1 . Fabricator Hacks . | . . . . Repair Station Hacks . | . . . . Recycling Unit Hacks . | . . . . Scanalyzer . | . . . . Garrison Access Hacks . | . . . . Unauthorized Hacks 1 | . . 1 . Terminals 1 | . . 1 . Track 1 | . . 1 . Fabricators . | . . . . Repair Stations . | . . . . Recycling Units . | . . . . Scanalyzers . | . . . . Garrison Access . | . . . . Data Cores Recovered . | . . . . Used . | . . . . Hacking Detections 3 | . . 3 . Full Trace Events . | . . . . Feedback Events . | . . . . Feedback Blocked . | . . . . Robot Schematics Acquired . | . . . . Robots Built . | . . . . Authchips . | . . . . Time . | . . . . Total Robot Build Rating . | . . . . Part Schematics Acquired . | . . . . Parts Built . | . . . . Authchips . | . . . . Time . | . . . . Total Part Build Rating . | . . . . Parts Repaired . | . . . . Time . | . . . . Parts Recycled . | . . . . Recycled Matter . | . . . . Retrieved Matter . | . . . . Retrieved Components . | . . . . Parts Scanalyzed . | . . . . Part Schematics Acquired . | . . . . Parts Damaged . | . . . . Bothacking | -11 -10 -9 -8 ------------ Run | Yrd Mat Mat Mat Used RIF Installer . | . . . . Robots Hacked . | . . . . Non-combat . | . . . . Combat . | . . . . Robot Hacks Applied . | . . . . Relay Couplers Released . | . . . . Fabnet Peak Effective % . | . . . . Robots Rewired . | . . . . Allies Hacked . | . . . . Hacks Repelled . | . . . . Allies | -11 -10 -9 -8 -------- Run | Yrd Mat Mat Mat Total Allies . | . . . . Largest Group . | . . . . Highest-Rated Group . | . . . . Highest-Rated Ally . | . . . . Total Orders . | . . . . Ally Attacks . | . . . . Total Damage . | . . . . Kills . | . . . . Allies Corrupted . | . . . . Allies Melted . | . . . . Intel | -11 -10 -9 -8 ------- Run | Yrd Mat Mat Mat Robot Analysis Total . | . . . . Derelict Logs Recovered . | . . . . Drone Launches . | . . . . Drone Recoveries . | . . . . Exploration | -11 -10 -9 -8 ------------- Run | Yrd Mat Mat Mat Turns Passed 424 | . 230 92 102 Spaces Moved 513 | 1 123 158 231 Core . | . . . . Treads . | . . . . Legs 27 | 1 26 . . Wheels 97 | . 97 . . Hover . | . . . . Flight 389 | . . 158 231 Fastest Speed 26 | 120 105 26 26 Average Speed 46 | 120 108 26 27 Slowest Speed 120 | 120 120 26 109 Overloaded Moves . | . . . . Propulsion Burnouts . | . . . . Robots Hopped 4 | . . 3 1 Cave-ins Triggered . | . . . . Exploration Rate (%) 18 | 2 21 32 19 Regions Visited 3 Branch Regions . Pre-discovered Areas . | . . . . Known Exits Taken . | . . . . Unknown Exits Taken 3 | 1 1 1 . Scrap Searched . | . . . . Spaces Dug . | . . . . Terrain Destroyed . | . . . . Melee . | . . . . Projectile . | . . . . AOE . | . . . . Terrain Rammed . | . . . . Walls Destroyed . | . . . . Machines Disabled . | . . . . Actions | -11 -10 -9 -8 --------- Run | Yrd Mat Mat Mat Total 651 | . 177 207 267 Wait 87 | . 13 43 31 Move 502 | . 122 151 229 Hop 4 | . . 3 1 Pick Up 5 | . 5 . . Fast Attach 8 | . 5 1 2 Attach 5 | . 1 4 . Detach 2 | . . 1 1 Swap 3 | . 3 . . Drop 10 | . 5 4 1 Fire 23 | . 21 . 2 Melee . | . . . . Ram 1 | . 1 . . Kick 1 | . 1 . . Crush . | . . . . Escape Stasis . | . . . . Rewire . | . . . . Trap . | . . . . Miscellaneous . | . . . . Route ------- -11/Scrapyard -10/Materials -9/Materials -8/Materials History --------- Turn | Location | Event 1 | -11/Scrapyard | Discovered new exit (range 0) 1 | -11/Scrapyard | Entered Materials 207 | -10/Materials | Discovered new exit (range 16) 231 | -10/Materials | Entered another Materials area 231 | -9/Materials | Evolved 2 slots: Propulsion x2 320 | -9/Materials | Discovered new exit (range 13) 323 | -9/Materials | Entered another Materials area 323 | -8/Materials | Evolved 2 slots: Utility x2 425 | -8/Materials | Self-destructed Last Messages --------------- 00326_ Current location identified: Materials 00344_ Acquired Shotgun. 00346_ Dropped Shotgun. 00408_ Acquired Imp. Sensor Array. 00412_ W-25 Informer sends out distress signal. 00413_ ALERT: Suspicious intruders detected, dispatching Cutter reinforcements to area. 00420_ R-06 Scavenger knocked back. 00420_ VTOL Module destroyed. 00420_ R-06 Scavenger destroyed. 00420_ A-02 Transporter destroyed. 00420_ K-01 Serf knocked back. 00420_ Acquired 78 matter. 00420_ K-01 Serf collects debris. 00422_ K-01 Serf cleans the Atomic Centrifuge. 00422_ VTOL Module destroyed. 00424_ ALERT: Hostiles spotted, dispatching reinforcements to Terminal M004. 00424_ U-05 Engineer lays Concrete. 00425_ K-01 Serf collects debris. Map ----- +----------------------------------------------------+ | ?????????????????????????????????????????????????? | | ?????????????????????????????????????????????????? | | ?????????????????????????????????????????????????? | | ?????????????????????????????????????????????????? | | ?????????????????????????????????????????????????? | | ?????????????????????????????????????????????????? | | ?????????????????????????????????????????????????? | | ?????????????????????????????????????????????????? | | ?????????????????????????????????????????????????? | | ?????????????????????????????????????????????????? | | ???????????????????????????? ????????????????????? | | ???????????????????????????? ????????????????????? | | ???????????????????????????? ????????????????????? | | ???????????????????????????? #???????????????????? | | ?????????????????????????### #???????????????????? | | ????????????????? ??? """"" #???????????????????? | | ???????????????? ? ""T"" #???????????????????? | | ???????????????? #???????????????????? | | ????????????????? r ##+######???????????? | | ????????????????? ????????????? | | ?????????????????? uk ?????????????? | | ??????????????????? ???????????????? | | ????????????????? """ """ ?????????????????? | | ????????????????? """ """ ###########????????? | | ???????????????# """ ="""c # "" #????????? | | ???????????????# ! kk@c # ""S #????????? | | ????????????????# g=c t "" #????????? | | ????????????????# # ##### """ #????????? | | ????????????????# #### ###???# """ #????????? | | ?????????????????????# ???????# """ #????????? | | ?????????????????????#????????# #????????? | | ??????????????????????????????# [ #????????? | | ??????????????????????????????#######+###???????? | | ??????????????????????????????????#% ###+### | | ???????????????????????????##?????# | | ?????????????????????????## ###???# | | ????????????????????????? ????# ! | | ????????????????????????# ????# ###+### | | ????????????????????????# !!?????## ##????????? | | ????????????????????????# !!??????# #?????????? | | ????????????????????????# !???????# #?????????? | | ????????????????????????# ???????# #?????????? | | ????????????????????????# ????????# #?????????? | | ????????????????????????# ????????# #?????##??? | | ????????????????????????#+###+###### ###??? !! | | ????????????????????????# #??""" !! | | ????????????????????????# #??""" | | ????????????????????????# #? """ | | ????????????????????????####+#####+### #? ? | | ?????????????????????????# # # """ "? | +----------------------------------------------------+ Best States ------------- Heat Dissipation 41 Energy Generation 10 Energy Capacity 250 Matter Stores 300 Matter Capacity 300 Sight Range 16 Terrain Scan Density 10 Evasion (%) 64 Item Schematics ----------------- None Robot Schematics ------------------ None Fabricated ------------ Nothing Alien Tech Used ----------------- None Achievements -------------- None Challenges ------------ None Game ------ Seed ProtonSwordHumpback Manual? 0 Play Time 00:12:11 Cumulative 84.9 hours Start 2024.06.09 @ 22:58:16 End 2024.06.14 @ 19:47:57 Sessions 3 Manual Loads 0 Difficulty Rogue Special Mode None Game No. 126 Rogue 41 Adventurer 79 Explorer 6 Win Type - Total 2 Types 2/0/0/0/0/0/0/0/0 Lore% 42 Gallery% 54 Achievement% 41 Wizard Run 0 Options --------- Layout 1 ASCII 0 Keyboard 0 Movement Numpad Keybinds 0 Fullscreen 2 Font 24/Smallcaps Map View 50x35 Zoom Use 0% Tactical HUD 1 Map Filters NONE Filters NONE Steam 1 RUN: ba18086a-7b18-4065-b8d3-2ca8b8fc072c